[Event "Julius Baer Generation Cup Prelims 2022"]
[Site "Online"]
[Date "2022.09.14"]
[Round "7.8"]
[White "Le, Quang Liem"]
[Black "Navara, David"]
[Result "1-0"]
[ECO "D38"]
[WhiteElo "2728"]
[BlackElo "2681"]
[Annotator "TA"]
[PlyCount "77"]
[EventDate "2022.09.12"]
[EventType "tourn"]
[EventCountry "NET"]
[SourceTitle "playchess.com"]
[Source "ChessBase"]
[SourceQuality "1"]
[TimeControl "900+10"]

{[%evp 14,77,23,20,17,10,23,22,26,0,0,0,5,7,0,0,10,17,15,39,44,0,-6,0,0,0,0,-6,7,8,33,36,47,47,67,47,35,41,47,41,50,21,31,24,41,32,67,66,74,78,589,584,551,238,695,667,831,822,1138,1112,1097,1097,981,634,964,768]} 1. Nf3 {[%emt 0:00:00]} d5 {[%emt 0:00:00]} 2. d4 {[%emt 0:00:03]} Nf6 {[%emt 0:00:01]} 3. c4 {[%emt 0:00:01]} e6 {[%emt 0:00:01]} 4. Nc3 {[%emt 0:00:01]} Bb4 {[%emt 0:00:02]} 5. Bg5 {[%emt 0:00:03]} h6 {[%emt 0:00:03]} 6. Bxf6 {[%emt 0:00:01]} Qxf6 {[%emt 0:00:00]} 7. Qa4+ {[%emt 0:00:01]} Nc6 {[%emt 0:00:01]} 8. e3 {[%emt 0:00:01] BESTDEEP} O-O {[%emt 0:00:17] CPLX 3.1. D38: Queen's Gambit Declined: Ragozin Defence (4 Nf3 Bb4).} 9. Be2 {[%emt 0:00:03] CPLX 3.0 7 (Bf1-d3) (=4)} dxc4 {[%emt 0:02:09] CPLX 3.0 13 (Bb4xc3) (=7)} 10. O-O {[%emt 0:00:03] CPLX 3.1} Rd8 {[%emt 0:01:23] [#] CPLX 2.9 4 (Bc8-d7) (=6). The position is equal.} 11. a3 $146 {[%emt 0:00:59] CPLX 2.9 26 (Qa4-b5) (=8)} ({Predecessor:} 11. Bxc4 Qg6 12. Rfd1 Bd7 13. Qb3 Bd6 14. Bd3 Qh5 15. Be2 Qg6 16. Nb5 Rab8 17. Rac1 {½-½ (48) Sargissian,G (2676)-Yu,Y (2668) Antalya 2013}) 11... Bxc3 {[%emt 0:00:37] EASY} 12. bxc3 {[%emt 0:00:00] RECAPT} Bd7 {[%emt 0:00:01][%cal Oc6d4] CPLX 2.6 5 (e6-e5) (=4)} 13. Qxc4 {[%emt 0:00:04] EASY} Rac8 {[%emt 0:00:14] CPLX 2.4 0 (b7-b6) (=4)} 14. Qd3 {[%emt 0:03:45] CPLX 2.4 0 (Qc4-c5) (=5)} Be8 {[%emt 0:00:35] CPLX 2.5 10 (Nc6-a5) (=5)} 15. c4 {[%emt 0:00:34] BESTDEEP} e5 {[%emt 0:01:30][%cal Re5d4] BESTDEEP} 16. d5 {[%emt 0:00:05] CPLX 2.9} Ne7 {[%emt 0:02:04] CPLX 2.8 5 (Nc6-b8) (=4)} 17. Rab1 {[%emt 0:00:18] CPLX 2.5 44 (a3-a4) (=8)} (17. a4 $14) 17... c6 $11 {[%emt 0:00:37][%cal Rc6d5] CPLX 2.6} 18. e4 {[%emt 0:04:23] CPLX 2.7} b5 {[%emt 0:00:04] CPLX 2.3} 19. cxb5 {[%emt 0:00:02] BESTDEEP} cxd5 {[%emt 0:00:01] EASY} 20. Rfc1 {[%emt 0:00:22] CPLX 2.4} d4 {[%emt 0:05:52] CPLX 2.7 13 (Qf6-d6) (=4)} 21. a4 {[%emt 0:00:12][%cal Ba3a4,Ba4a5,Ba5b6,Bb6b7][%mdl 32] CPLX 2.6} Ng6 {[%emt 0:00:22] CPLX 2.6 25 (Qf6-f4) (=5)} 22. g3 {[%emt 0:00:03] Prevents Nf4. CPLX 2.6} Bd7 {[%emt 0:00:05] CPLX 2.6 11 (Qf6-d6) (=6)} 23. a5 {[%emt 0:00:40] CPLX 2.6 0 (Qd3-a3) (=5)} Bh3 {[%emt 0:00:39][%cal Og6f4] CPLX 2.6 20 (Ng6-f8) (=7)} 24. Rxc8 {[%emt 0:01:19] CPLX 3.1 20 (Be2-f1) (=6)} Rxc8 {[%emt 0:00:00] RECAPT} 25. b6 {[%emt 0:00:02] EASY} axb6 {[%emt 0:00:09] CPLX 3.0} 26. axb6 {[%emt 0:00:00] Strongly threatening b7. RECAPT} Rb8 {[%emt 0:00:12] BESTDEEP} 27. Qb5 {[%emt 0:00:57] Threatening b7. MISS-b6-b7 29 (b6-b7) (=6)} d3 $1 {[%emt 0:00:42] EASY} 28. Bd1 {[%emt 0:00:25] BESTDEEP} Bg4 {[%emt 0:01:48] EASY} 29. Kg2 {[%emt 0:00:06] BESTDEEP} d2 {[%emt 0:00:09] CPLX 4.4 35 (Qf6-d6) (=6)} 30. b7 {[%emt 0:00:19] Dancing on a razor blade. CPLX 4.8} Bxf3+ {[%emt 0:00:20] BESTDEEP} 31. Bxf3 {[%emt 0:00:00] [#] Black must now prevent Qd7. RECAPT} Ne7 $2 {[%emt 0:00:04][%mdl 8192] Black cannot hold the game after this. RELBLUND 400 (Qf6-g5) (=23)} (31... Qg5 $16 32. Bd1 Nf4+ 33. Kf1 Ne6) 32. Qc5 $18 {[%emt 0:01:17] Qc7 is the strong threat. BESTDEEP} Nc6 {[%emt 0:00:17] CPLX 3.7} 33. Bg4 {[%emt 0:00:46] CPLX 3.9 313 (Bf3-d1) (=17)} (33. Bd1 $142) 33... Kh7 $2 {[%emt 0:00:09] CPLX 3.8 400 (Qf6-g6) (=36)} (33... Qg6 34. Bf3 Qf6) 34. Rb6 {[%emt 0:00:21] CPLX 3.9. White is clearly winning.} Qg5 {[%emt 0:00:01] EVAL 164 (Qf6-g6) (=41)} 35. Bd1 {[%emt 0:00:11] EVAL} Nd8 {[%emt 0:00:19] BEVAL 316 (Nc6-d4) (=51)} 36. Qc7 {[%emt 0:00:03] BEVAL 26 (Qc5-c8) (=16)} Rxb7 {[%emt 0:00:05] BEVAL} 37. Rxb7 {[%emt 0:00:02] BEVAL} Nxb7 {[%emt 0:00:00] EVAL} 38. Qxb7 {[%emt 0:00:00] RECAPT} Qd8 {[%emt 0:00:29] EVAL 330 (Qg5-f6) (=56)} 39. Qxf7 {[%emt 0:00:04] Weighted Error Value: White=0.23 (precise) /Black=0.56} 1-0

[Event "Julius Baer Generation Cup Prelims 2022"]
[Site "Online"]
[Date "2022.09.14"]
[Round "8.1"]
[White "Giri, Anish"]
[Black "Navara, David"]
[Result "1-0"]
[ECO "D38"]
[WhiteElo "2764"]
[BlackElo "2681"]
[Annotator "TA"]
[PlyCount "83"]
[EventDate "2022.09.12"]
[EventType "tourn"]
[EventCountry "NET"]
[SourceTitle "playchess.com"]
[Source "ChessBase"]
[SourceQuality "1"]
[TimeControl "900+10"]

{[%evp 11,83,13,16,10,17,8,15,2,5,7,10,12,13,8,5,9,18,7,19,18,20,4,42,38,69,67,56,69,68,75,65,58,72,59,125,106,112,109,121,69,70,21,22,0,35,-25,-39,-24,0,-366,-53,-64,-63,-29,0,0,0,0,726,712,709,673,671,667,862,647,29980,29981,29991,589,576,563,514,501]} 1. d4 {[%emt 0:00:00]} Nf6 {[%emt 0:00:00]} 2. c4 {[%emt 0:00:01]} e6 {[%emt 0:00:02]} 3. Nf3 {[%emt 0:00:01]} d5 {[%emt 0:00:01]} 4. Nc3 {[%emt 0:00:00]} Bb4 {[%emt 0:00:02]} 5. Qa4+ {[%emt 0:00:01]} Nc6 {[%emt 0:00:01]} 6. e3 {[%emt 0:00:02]} O-O {[%emt 0:00:02]} 7. Qc2 {[%emt 0:00:01] D38: Queen's Gambit Declined: Ragozin Defence (4 Nf3 Bb4).} Re8 {[%emt 0:00:03]} 8. Bd2 {[%emt 0:00:03]} Bf8 {[%emt 0:00:14]} 9. Be2 {[%emt 0:00:02] The position is equal.} Nb4 {[%emt 0:00:12]} 10. Qb1 {[%emt 0:00:01]} dxc4 {[%emt 0:00:01]} 11. Bxc4 {[%emt 0:00:01]} b6 {[%emt 0:00:01]} 12. a3 {[%emt 0:00:01]} Ba6 {[%emt 0:00:04]} 13. Be2 {[%emt 0:00:01]} Bxe2 {[%emt 0:00:03]} 14. Nxe2 {[%emt 0:00:00] [#]} Nbd5 $146 {[%emt 0:01:27]} ({Predecessor:} 14... Na6 15. e4 h6 16. e5 Nd5 17. h4 c5 18. Qd3 Nb8 19. Rc1 Nc6 20. O-O Nxd4 21. Nexd4 cxd4 22. Qxd4 {½-½ (33) Sunilduth Lyna,N (2659)-Santos Latasa,J (2675) Ovar 2022}) 15. e4 {[%emt 0:00:19]} Ne7 {[%emt 0:00:00]} 16. e5 {[%emt 0:00:11]} Nfd5 {[%emt 0:00:30]} 17. Ng5 $1 $36 {[%emt 0:01:45][%csl Gg5][%cal Rb1h7][%mdl 2048] Black is under pressure.} Ng6 {[%emt 0:00:12]} 18. h4 $1 {[%emt 0:00:10] Black must now prevent h5.} Be7 {[%emt 0:00:01] [#]} 19. Nxh7 {[%emt 0:01:46]} Bxh4 {[%emt 0:00:32]} (19... Kxh7 $2 20. h5 f5 21. hxg6+ Kxg6 22. g4 $18) 20. g3 {[%emt 0:00:47]} Kxh7 {[%emt 0:03:33]} 21. gxh4 {[%emt 0:01:18]} Kh8 {[%emt 0:00:04]} 22. Qe4 {[%emt 0:00:18]} f5 {[%emt 0:01:29]} (22... Nge7 $14) 23. Qg2 {[%emt 0:00:49]} Nf8 {[%emt 0:00:01]} 24. Rg1 {[%emt 0:02:02][%csl Gg1][%cal Rg2g7]} Qd7 {[%emt 0:00:03]} 25. Bh6 {[%emt 0:02:09]} Re7 $14 {[%emt 0:00:05] [#]} 26. Nf4 {[%emt 0:00:06]} Kh7 $1 $11 {[%emt 0:02:09]} 27. Bg5 {[%emt 0:02:35]} Rf7 {[%emt 0:02:34][%cal Od5f4]} (27... Nxf4 $5 28. Bxf4 (28. Qxa8 Nd3+ 29. Kd2 Qxd4 $11) 28... Qd5 $14) 28. Nh3 {[%emt 0:01:18]} (28. Nh5 $14) 28... Rc8 {[%emt 0:02:10]} 29. O-O-O {[%emt 0:00:21]} c5 {[%emt 0:00:10]} 30. dxc5 {[%emt 0:00:11][%mdl 8192]} (30. Kb1 $11 {and White has nothing to worry.}) 30... Qb5 $2 {[%emt 0:02:05]} (30... Rxc5+ $19 31. Kb1 Qb5) 31. Rxd5 {[%emt 0:00:04]} exd5 {[%emt 0:00:00]} 32. Be3 {[%emt 0:00:12]} Rfc7 {[%emt 0:01:31] Strongly threatening ...Qd3.} 33. Ng5+ {[%emt 0:00:03][%cal Bh3g5,Bg5e6,Be6f4][%mdl 32]} Kh8 {[%emt 0:00:02]} 34. e6 {[%emt 0:00:00][%cal Be5e6,Be6e7][%mdl 32] Nf7+ is the strong threat.} Rxc5+ $2 {[%emt 0:01:16][%mdl 8192]} (34... Kg8 $11 35. Kb1 Qc4) 35. Bxc5 {[%emt 0:00:03] White threatens Nf7+ and mate.} Qxc5+ {[%emt 0:00:00]} 36. Kb1 {[%emt 0:00:01] Threatening mate with Nf7+. Active counter play!} Kg8 {[%emt 0:00:16]} 37. e7 {[%emt 0:00:05]} Ng6 {[%emt 0:00:12]} 38. Ne6 {[%emt 0:00:18] Against Nf4} Qc2+ {[%emt 0:00:06]} 39. Ka1 {[%emt 0:00:01]} f4 {[%emt 0:00:15]} 40. Qxg6 {[%emt 0:00:18]} (40. Qxd5 $142 Re8 41. Nc7+ Kh7 42. Nxe8 Kh6 43. Qg5+ Kh7 44. Qh5+ Kg8 45. Nf6+ gxf6 46. e8=Q+ Kg7 47. Qhh8#) 40... Qxg6 $18 {[%emt 0:00:00]} 41. Rxg6 {[%emt 0:00:01]} Kf7 {[%emt 0:00:11]} 42. Nxf4 {[%emt 0:00:16] Weighted Error Value: White=0.52/Black=0.42} 1-0

[Event "Julius Baer Generation Cup Prelims 2022"]
[Site "Online"]
[Date "2022.09.14"]
[Round "8.2"]
[White "Niemann, Hans Moke"]
[Black "Le, Quang Liem"]
[Result "0-1"]
[ECO "C54"]
[WhiteElo "2688"]
[BlackElo "2728"]
[Annotator "TA"]
[PlyCount "108"]
[EventDate "2022.09.12"]
[EventType "tourn"]
[EventCountry "NET"]
[SourceTitle "playchess.com"]
[Source "ChessBase"]
[SourceQuality "1"]
[TimeControl "900+10"]

{[%evp 12,108,19,13,13,20,17,0,1,4,0,1,0,0,7,-42,0,8,0,0,23,0,18,0,18,0,5,5,27,24,13,16,19,0,0,0,0,0,0,0,0,0,0,0,0,0,0,0,0,-16,0,0,0,0,0,0,0,0,0,0,0,-66,-64,-63,-70,-72,-8,-68,-57,-150,-126,-166,-161,-154,-73,-202,-200,-224,-241,-237,-227,-200,-196,-303,-300,-351,-343,-442,-443,-420,-434,-494,-480,-502,-493,-474,-445,-755,-700]} 1. e4 {[%emt 0:00:00]} e5 {[%emt 0:00:00]} 2. Nf3 {[%emt 0:00:03]} Nc6 {[%emt 0:00:01]} 3. Bc4 {[%emt 0:00:00]} Nf6 {[%emt 0:00:02]} 4. d3 {[%emt 0:00:01]} Bc5 {[%emt 0:00:01]} 5. O-O {[%emt 0:00:02]} O-O {[%emt 0:00:02]} 6. c3 {[%emt 0:00:02]} d6 {[%emt 0:00:01]} 7. Re1 {[%emt 0:00:01] The modern move.} Bb6 {[%emt 0:00:03] C54: Giuoco Piano: 4 c3 Nf6, main lines with 5 d4 and 5 d3.} 8. a4 {[%emt 0:00:03]} a5 {[%emt 0:00:01]} 9. h3 {[%emt 0:00:07]} h6 {[%emt 0:00:27] The position is equal.} 10. Nbd2 {[%emt 0:00:09]} Be6 {[%emt 0:00:13]} 11. Bxe6 {[%emt 0:00:13]} fxe6 {[%emt 0:00:00]} 12. Nc4 {[%emt 0:00:00]} Ba7 {[%emt 0:00:45]} 13. Qb3 {[%emt 0:00:49]} (13. Bd2 $11 {might be stronger.}) 13... Qd7 {[%emt 0:00:22]} (13... Nh5 $5 {[%cal Rf8f3]} 14. Qxb7 Qd7 $11) 14. Be3 {[%emt 0:00:03]} ({Not} 14. Qxb7 $2 Rfb8 15. Qb5 Rxb5 $19) 14... Bxe3 {[%emt 0:00:06]} 15. Rxe3 {[%emt 0:00:05]} b6 {[%emt 0:02:16] [#]} 16. Rd1 $146 {[%emt 0:00:26]} ({Predecessor:} 16. Rae1) 16... Qf7 {[%emt 0:00:15]} 17. Rde1 {[%emt 0:01:21]} Nd7 {[%emt 0:00:57]} 18. Qc2 {[%emt 0:00:17]} Qf6 {[%emt 0:00:13]} 19. Na3 {[%emt 0:00:07]} Rf7 {[%emt 0:00:48]} 20. Nb5 {[%emt 0:00:09]} Nf8 {[%emt 0:00:05][%cal Bd7f8,Bf8g6,Bg6f4][%mdl 32]} 21. Nh2 {[%emt 0:00:45]} Ng6 {[%emt 0:00:10]} 22. Rf3 {[%emt 0:00:06]} Nf4 {[%emt 0:01:30]} 23. g3 {[%emt 0:00:09]} Qg6 {[%emt 0:00:10]} (23... Nxh3+ $2 24. Kg2 Nf4+ 25. gxf4 $16) 24. h4 {[%emt 0:00:10]} Raf8 {[%emt 0:00:04]} 25. Kh1 {[%emt 0:00:14]} Nh5 {[%emt 0:00:21]} 26. Rxf7 {[%emt 0:00:05]} Rxf7 {[%emt 0:00:04]} 27. Re3 {[%emt 0:00:40]} Nf6 {[%emt 0:00:46]} 28. Qe2 {[%emt 0:00:08]} d5 {[%emt 0:00:15]} 29. Kg1 {[%emt 0:00:25]} Rd7 {[%emt 0:00:20]} 30. Qc2 {[%emt 0:01:16]} Rf7 {[%emt 0:01:33]} 31. Qe2 {[%emt 0:00:07]} Rd7 {[%emt 0:00:09]} 32. Kg2 {[%emt 0:00:03]} Rf7 {[%emt 0:00:19]} 33. Kh3 {[%emt 0:00:15]} Kh7 {[%emt 0:00:28]} 34. Rf3 {[%emt 0:01:14]} Kg8 {[%emt 0:00:36][%cal Rd5e4]} 35. Re3 {[%emt 0:00:08]} Kh7 {[%emt 0:00:14]} 36. g4 {[%emt 0:00:21]} ({White should try} 36. Rf3 $11) 36... Rd7 {[%emt 0:00:14]} 37. Na3 {[%emt 0:01:36]} Kg8 {[%emt 0:00:16]} 38. Nc2 {[%emt 0:00:08]} Ne7 {[%emt 0:00:16] Black is more active.} (38... Rd8 $17) 39. Ne1 {[%emt 0:00:06]} (39. h5 $11 Qg5 40. Ne1) 39... Qe8 $15 {[%emt 0:00:30]} 40. Ng2 {[%emt 0:00:11]} (40. h5 $1 $15) 40... Ng6 $1 $17 {[%emt 0:00:32]} 41. Rg3 {[%emt 0:00:48]} dxe4 {[%emt 0:01:28]} 42. dxe4 {[%emt 0:00:03] [#]} Qd8 {[%emt 0:00:14]} ({Better is} 42... Qa8 $1 43. f3 Qd8) 43. Nf3 {[%emt 0:00:21] Now White is beyond hope.} (43. Qc4 $17) 43... Rd1 $40 {[%emt 0:00:37][%mdl 128] Hoping for ...Rh1+. Black wants a kill.} 44. Kh2 {[%emt 0:03:30] [#] Against Rh1+} Qd3 $1 {[%emt 0:01:35]} 45. Qxd3 {[%emt 0:00:37]} Rxd3 {[%emt 0:00:00]} 46. Nge1 {[%emt 0:02:39]} Rd1 {[%emt 0:00:04]} 47. Rg1 {[%emt 0:00:43]} (47. g5 $142 hxg5 48. Rxg5 Nxh4 49. Nxh4 Rxe1 50. f3) 47... Nxe4 {[%emt 0:00:08]} 48. Nc2 {[%emt 0:00:46]} Nxf2 {[%emt 0:00:15]} 49. h5 {[%emt 0:00:04]} Nf4 {[%emt 0:00:24] Threatens to win with ...Rd3.} 50. Rxd1 {[%emt 0:00:14]} Nxd1 {[%emt 0:00:00]} 51. Nxe5 {[%emt 0:00:02] Black is clearly winning.} Nxb2 {[%emt 0:00:02]} 52. Nd4 {[%emt 0:00:02]} c5 {[%emt 0:00:30]} 53. Nb5 {[%emt 0:00:05]} Nxa4 {[%emt 0:00:03]} 54. Kg3 {[%emt 0:00:06]} (54. c4 $142) 54... Ne2+ {[%emt 0:00:04] Weighted Error Value: White=0.30/Black=0.07 (flawless)} 0-1

[Event "Julius Baer Generation Cup Prelims 2022"]
[Site "Online"]
[Date "2022.09.14"]
[Round "8.4"]
[White "Praggnanandhaa R"]
[Black "Carlsen, Magnus"]
[Result "1/2-1/2"]
[ECO "B06"]
[WhiteElo "2676"]
[BlackElo "2861"]
[Annotator "TA"]
[PlyCount "134"]
[EventDate "2022.09.12"]
[EventType "tourn"]
[EventCountry "NET"]
[SourceTitle "playchess.com"]
[Source "ChessBase"]
[SourceQuality "1"]
[TimeControl "900+10"]

{[%evp 9,134,37,45,45,52,45,44,33,38,37,123,116,126,132,130,107,207,108,67,116,94,100,113,102,82,30,26,0,0,0,6,18,21,7,7,0,13,0,74,94,73,70,55,0,173,163,303,19,39,0,2,0,0,0,0,0,0,0,0,0,0,0,0,0,0,0,0,0,0,0,0,0,0,0,0,0,0,0,0,0,0,0,0,0,0,0,0,0,0,0,0,0,0,0,0,0,0,0,0,0,0,0,0,0,0,0,0,0,0,0,0,0,0,0,0,0,0,0,0,0,0,0,0,0,0,0,0]} 1. e4 {[%emt 0:00:00]} g6 {[%emt 0:00:00]} 2. d4 {[%emt 0:00:02]} d6 {[%emt 0:00:02]} 3. Nc3 {[%emt 0:00:01]} Bg7 {[%emt 0:00:02]} 4. Be3 {[%emt 0:00:01]} a6 {[%emt 0:00:01]} 5. h4 {[%emt 0:00:02]} Nf6 {[%emt 0:00:03]} 6. h5 {[%emt 0:00:01] B06: Modern Defence.} Nxh5 {[%emt 0:00:46]} 7. Rxh5 {[%emt 0:00:03]} gxh5 {[%emt 0:00:00]} 8. Qxh5 {[%emt 0:00:01] White is slightly better.} e6 {[%emt 0:00:43]} 9. e5 {[%emt 0:01:48]} d5 {[%emt 0:04:25] [#]} (9... b5 $14) 10. O-O-O $146 {[%emt 0:00:12]} ({Predecessor:} 10. f4 Nc6 11. Nf3 Kf8 12. g4 f6 13. O-O-O Bd7 14. f5 h6 15. Bd3 Kg8 16. Rg1 {1-0 (35) Petrov,N (2595)-Lee,J (2437) Abu Dhabi 2019}) 10... c5 {[%emt 0:00:42]} 11. dxc5 {[%emt 0:01:30] aiming for Ne4.} Bd7 {[%emt 0:00:02]} 12. f4 {[%emt 0:01:50] Threatens to win with Nf3. 0x0.0021d22a0e62dp-1022s more active pieces.} ({Weaker is} 12. Bg5 Qa5 $11) 12... Nc6 {[%emt 0:00:03] [#]} (12... Qa5 $16) 13. Nf3 {[%emt 0:00:54]} ({Only move:} 13. Na4 $1 $18) 13... Qa5 {[%emt 0:02:23]} 14. Ng5 {[%emt 0:04:10]} (14. Nd2 $14 {should be considered.}) 14... O-O-O {[%emt 0:00:03]} 15. Qxf7 {[%emt 0:00:32]} d4 {[%emt 0:03:01]} 16. Bxd4 {[%emt 0:01:52]} ({Not} 16. Nxe6 Bxe6 17. Qxe6+ Kb8 18. Bxd4 Nxd4 $19) 16... Nxd4 {[%emt 0:00:02]} 17. Qxg7 {[%emt 0:00:14]} ({White should try} 17. Rxd4 $16 Bxe5 18. fxe5) 17... Nf5 $11 {[%emt 0:00:30]} 18. Qf7 {[%emt 0:00:14]} Rhf8 {[%emt 0:00:19]} 19. Qh5 {[%emt 0:01:17] And now c6 would win.} Ne3 {[%emt 0:01:09] [#]} 20. Rxd7 $1 {[%emt 0:00:54]} Rxd7 {[%emt 0:00:16]} 21. Nxe6 {[%emt 0:00:03] Chess con chili.} Rg8 {[%emt 0:01:02]} 22. Bd3 {[%emt 0:01:04]} Nd5 $1 {[%emt 0:00:08]} 23. Nxd5 {[%emt 0:01:09] Pair of Knights!} ({Don't blunder} 23. Bxh7 $2 Rh8 24. Nf8 Rxf8 $19) 23... Qe1+ {[%emt 0:00:02]} (23... Rxd5 $11 {remains equal.} 24. Kd1 Qxa2) 24. Qd1 $16 {[%emt 0:00:02]} Qxd1+ {[%emt 0:00:00]} 25. Kxd1 {[%emt 0:00:01]} Rxd5 {[%emt 0:00:00]} 26. Ke2 {[%emt 0:00:44]} (26. Ke1 $1 $14) 26... Rxg2+ $2 {[%emt 0:00:03]} (26... Kd7 $11 {and Black has nothing to worry.} 27. Bf5 Rxg2+ 28. Ke3 h5) 27. Kf3 $18 {[%emt 0:00:21]} Rh2 {[%emt 0:00:11] [#]} (27... Rg1 {was worth a try.}) 28. Kg3 $2 {[%emt 0:00:13]} ({White has to play} 28. Ke4 $1 $18 {[%cal Re4d5]} Rd7 29. f5) 28... Rh6 $11 {[%emt 0:00:14]} 29. Ng5 {[%emt 0:00:05]} (29. Be4 $5 {[%cal Re4d5]} Rd2 30. Ng5 $14) 29... Rxc5 {[%emt 0:00:09] The position is equal.} 30. Nxh7 {[%emt 0:00:10]} Kd7 {[%emt 0:00:13]} 31. Nf6+ {[%emt 0:00:14]} Rxf6 {[%emt 0:00:03]} 32. exf6 {[%emt 0:00:01][%mdl 4096] Endgame KR-KB} Ke6 {[%emt 0:00:01]} 33. Kf3 {[%emt 0:00:04]} Kxf6 {[%emt 0:00:01]} 34. Ke3 {[%emt 0:00:01]} a5 {[%emt 0:00:01]} 35. Kd4 {[%emt 0:00:07]} Rh5 {[%emt 0:00:04]} 36. f5 {[%emt 0:00:05]} Rh6 {[%emt 0:01:09]} 37. Kd5 {[%emt 0:00:33]} Ke7 {[%emt 0:00:03]} 38. a4 {[%emt 0:00:09]} Rc6 {[%emt 0:00:16]} 39. b3 {[%emt 0:00:06]} Kf6 {[%emt 0:00:10]} 40. Kd4 {[%emt 0:00:06]} Ke7 {[%emt 0:00:20]} 41. Be4 {[%emt 0:00:08]} Rc7 {[%emt 0:00:08]} 42. Ke5 {[%emt 0:00:14]} Rc5+ {[%emt 0:00:02]} 43. Bd5 {[%emt 0:00:46]} Rxc2 {[%emt 0:00:10]} 44. f6+ {[%emt 0:00:05]} Kd7 {[%emt 0:00:01]} 45. Bxb7 {[%emt 0:00:03]} Re2+ {[%emt 0:00:05]} 46. Kf5 {[%emt 0:00:10]} Rf2+ {[%emt 0:00:01]} 47. Kg6 {[%emt 0:00:15]} Ke6 {[%emt 0:00:27]} 48. Bc8+ {[%emt 0:00:01]} Ke5 {[%emt 0:00:08]} 49. f7 {[%emt 0:00:13]} Kd6 {[%emt 0:00:01]} 50. Ba6 {[%emt 0:00:21]} Ke7 {[%emt 0:00:01] Hoping for ...Rf6+.} 51. Bc4 {[%emt 0:00:02]} Rf6+ {[%emt 0:00:05]} 52. Kg5 {[%emt 0:00:01]} Rf2 {[%emt 0:00:01]} 53. Kg4 {[%emt 0:00:03]} Rf6 {[%emt 0:00:06]} 54. Kh5 {[%emt 0:00:03]} Rxf7 {[%emt 0:00:55]} 55. Bxf7 {[%emt 0:00:01]} Kxf7 {[%emt 0:00:00] KPP-KP} 56. Kg5 {[%emt 0:00:11] White threatens Kf5 and mate.} Ke6 {[%emt 0:00:01]} 57. Kf4 {[%emt 0:00:01] Intending Ke4 and mate.} Kd5 {[%emt 0:00:00]} 58. Ke3 {[%emt 0:00:01]} Kc5 {[%emt 0:00:03]} 59. Kd3 $1 {[%emt 0:00:01]} Kd5 {[%emt 0:00:02]} 60. Kd2 {[%emt 0:00:07]} Kd4 {[%emt 0:00:03]} 61. Kc2 {[%emt 0:00:01]} Kd5 {[%emt 0:00:01]} 62. Kd3 {[%emt 0:00:01]} Kc5 {[%emt 0:00:02]} 63. Kc3 $1 {[%emt 0:00:00]} Kd5 {[%emt 0:00:01]} 64. b4 {[%emt 0:00:02]} axb4+ {[%emt 0:00:00]} 65. Kxb4 {[%emt 0:00:00] Kb5 would kill now.} Kc6 {[%emt 0:00:00]} 66. a5 {[%emt 0:00:00]} Kb7 {[%emt 0:00:01]} 67. a6+ {[%emt 0:00:00]} Kxa6 {[%emt 0:00:03] Weighted Error Value: White=0.21 (precise) /Black=0.14 (very precise)} 1/2-1/2